fUSD/lending_fUSD_20260615
["ID","MTS","AMOUNT","RATE_DAILY","PERIOD"]
[425106342,1781508646000,-408.0,0.00019,2]
[425106343,1781508646000,-19582.88280913,0.0002,2]
[425106341,1781508646000,-151.0,0.00014757,2]
[425106345,1781508646000,-2601.44914365,0.0002,2]
[425106344,1781508646000,-10045.76507784,0.0002,2]
[425106346,1781508646000,-344.15000002,0.0002,2]
[425106350,1781508648000,-1517.79146064,0.0002,2]
[425106351,1781508648000,-11674.58188731,0.0002,2]
[425106349,1781508648000,-6992.56446372,0.0002,2]
[425106348,1781508648000,-136563.50620397,0.0002,2]
[425106347,1781508648000,-1364.377,0.0001765,2]
[425106352,1781508649000,-7868.23684178,0.0002,2]
[425106361,1781508767000,-153.0,0.00012394,2]
[425106363,1781508820000,-151.0,0.00012394,2]
[425106364,1781508874000,-152.0,0.00012394,2]
[425106365,1781508928000,-151.0,0.00012394,2]
[425106366,1781508981000,-153.0,0.00012394,2]
[425106367,1781509034000,-151.0,0.00012394,2]
[425106369,1781509088000,-150.0,0.00012394,2]
[425106371,1781509141000,-497.94313002,0.00012393,2]
[425106372,1781509194000,-500.0,0.00012393,2]
[425106373,1781509248000,-500.0,0.00012393,2]
[425106374,1781509415000,161.61551665,0.00010798,10]
[425106375,1781509467000,-300.0,0.00012393,2]
[425106376,1781509521000,-298.5,0.00012393,2]
[425106377,1781509574000,-151.0,0.00012373,2]
[425106381,1781509628000,-151.0,0.00012373,2]
[425106387,1781509639000,-152.0,0.00012394,2]
[425106386,1781509639000,-152.0,0.00012394,2]
[425106385,1781509639000,-153.0,0.00012394,2]
[425106383,1781509639000,-151.0,0.00012373,2]
[425106384,1781509639000,-151.0,0.00012394,2]
[425106382,1781509639000,-151.0,0.00012373,2]
[425106388,1781509640000,-31.90153281,0.00012394,2]
[425106390,1781509682000,-119.09846719,0.00012394,2]
[425106391,1781509735000,-152.0,0.00012394,2]
[425106392,1781509761000,-150.0,0.00012394,2]
[425106393,1781509761000,-152.0,0.00012394,2]
[425106394,1781509761000,-113.47020698,0.00012394,2]
[425106395,1781509788000,-39.52979302,0.00012394,2]
[425106424,1781509842000,-150.0,0.00012022,2]
[425106471,1781509845000,-30.61556444,0.00012394,2]
[425106472,1781509845000,-151.0,0.00012394,2]
[425106467,1781509845000,-151.0,0.00012394,2]
[425106466,1781509845000,-152.0,0.00012394,2]
[425106464,1781509845000,-150.0,0.00012394,2]
[425106462,1781509845000,-151.0,0.00012394,2]
[425106469,1781509845000,-120.38443556,0.00012394,2]
[425106459,1781509845000,-38.9336256,0.00012394,2]
[425106449,1781509845000,-151.0,0.00012394,2]
[425106452,1781509845000,-112.0663744,0.00012394,2]
[425106450,1781509845000,-152.0,0.00012394,2]
[425106474,1781509845000,-150.0,0.00012394,2]
[425106460,1781509845000,-151.0,0.00012394,2]
[425106475,1781509845000,-152.0,0.00012394,2]
[425106473,1781509845000,-150.0,0.00012394,2]
[425106478,1781509845000,-34.83336314,0.00012394,2]
[425106477,1781509845000,-151.0,0.00012394,2]
[425106476,1781509845000,-151.0,0.00012394,2]
[425106491,1781509845000,-4728.06623055,0.00013408,2]
[425106480,1781509845000,-151.0,0.00012394,2]
[425106481,1781509845000,-42062.0,0.000132,2]
[425106482,1781509845000,-500.0,0.00013299,2]
[425106483,1781509845000,-524.39118888,0.00013299,2]
[425106487,1781509845000,-348.66418483,0.00013408,2]
[425106484,1781509845000,-500.0,0.00013299,2]
[425106485,1781509845000,-220.57812814,0.00013299,2]
[425106488,1781509845000,-2277.63330726,0.00013408,2]
[425106486,1781509845000,-4599.13480497,0.00013408,2]
[425106489,1781509845000,-775.59928893,0.00013408,2]
[425106490,1781509845000,-500.0,0.00013408,2]
[425106479,1781509845000,-118.16663686,0.00012394,2]
[425106504,1781509848000,-187.43749859,0.00012208,2]
[425106505,1781509848000,-648.11250139,0.00013408,2]
[425106506,1781509848000,-898.00642169,0.00013408,2]
[425106524,1781509849000,-200.0,0.00014158,2]
[425106528,1781509849000,-963.8643499,0.00014353,2]
[425106527,1781509849000,-682.28,0.00014351,2]
[425106525,1781509849000,-987.12,0.00014199,2]
[425106523,1781509849000,-166.66,0.0001414,2]
[425106517,1781509849000,-281.0,0.00013992,2]
[425106516,1781509849000,-166.66,0.00013854,2]
[425106513,1781509849000,-166.66,0.00013569,2]
[425106512,1781509849000,-250.0,0.00013499,2]
[425106510,1781509849000,-11753.80443313,0.00013408,2]
[425106511,1781509849000,-3930.43607666,0.00013408,2]
[425106509,1781509849000,-656.88955998,0.00013408,2]
[425106508,1781509849000,-2278.27159061,0.00013408,2]
[425106507,1781509849000,-3100.0,0.00013408,2]
[425106515,1781509849000,-336.79367346,0.00013699,2]
[425106526,1781509849000,-987.12,0.00014287,2]
[425106514,1781509849000,-10767.8997,0.000136,2]
[425106519,1781509849000,-163.69,0.00014,2]
[425106518,1781509849000,-250.0,0.00014,2]
[425106540,1781509849000,-209.29675512,0.00014584,2]
[425106535,1781509849000,-987.12,0.00014504,2]
[425106532,1781509849000,-987.12,0.0001441,2]
[425106538,1781509849000,-216.09656886,0.00014568,2]
[425106529,1781509849000,-23.2556501,0.00014353,2]
[425106530,1781509849000,-209.82,0.00014357,2]
[425106534,1781509849000,-987.12,0.00014459,2]
[425106531,1781509849000,-1230.4,0.00014371,2]
[425106533,1781509849000,-166.66,0.00014426,2]
[425106539,1781509849000,-777.82324488,0.00014584,2]
[425106536,1781509849000,-987.12,0.00014546,2]
[425106520,1781509849000,-290.45,0.00014031,2]
[425106522,1781509849000,-443.27,0.00014123,2]
[425106521,1781509849000,-202.33,0.00014034,2]
[425106537,1781509849000,-151.0,0.00014557,2]
[425106547,1781509850000,-987.12,0.00014718,2]
[425106545,1781509850000,-150.0,0.00014694,2]
[425106542,1781509850000,-987.12,0.00014654,2]
[425106543,1781509850000,-987.12,0.00014687,2]
[425106541,1781509850000,-987.12,0.0001462,2]
[425106544,1781509850000,-152.0,0.00014694,2]
[425106548,1781509850000,-987.12,0.00014748,2]
[425106546,1781509850000,-166.66,0.00014711,2]
[425106551,1781509850000,-987.12,0.00014831,2]
[425106555,1781509850000,-987.12,0.00014882,2]
[425106557,1781509850000,-751.66775334,0.000149,2]
[425106552,1781509850000,-164.54840201,0.00014848,2]
[425106554,1781509850000,-200.0,0.0001488,2]
[425106550,1781509850000,-987.12,0.00014804,2]
[425106556,1781509850000,-2963.98672111,0.000149,2]
[425106553,1781509850000,-987.12,0.00014856,2]
[425106549,1781509850000,-987.12,0.00014776,2]
[425106576,1781509851000,-987.12,0.00015179,2]
[425106568,1781509851000,-987.12,0.0001502,2]
[425106570,1781509851000,-987.12,0.00015062,2]
[425106577,1781509851000,-987.12,0.00015198,2]
[425106572,1781509851000,-987.12,0.00015102,2]
[425106574,1781509851000,-987.12,0.00015141,2]
[425106575,1781509851000,-987.12,0.0001516,2]
[425106587,1781509851000,-987.12,0.00015352,2]
[425106571,1781509851000,-987.12,0.00015082,2]
[425106573,1781509851000,-987.12,0.00015122,2]
[425106563,1781509851000,-987.12,0.00014953,2]
[425106567,1781509851000,-387.02,0.00015,2]
[425106566,1781509851000,-987.12,0.00014998,2]
[425106564,1781509851000,-987.12,0.00014976,2]
[425106561,1781509851000,-987.12,0.0001493,2]
[425106562,1781509851000,-164.92,0.00014949,2]
[425106565,1781509851000,-166.66,0.00014997,2]
[425106560,1781509851000,-987.12,0.00014906,2]
[425106559,1781509851000,-3602.63529515,0.000149,2]
[425106558,1781509851000,-2681.7102304,0.000149,2]
[425106569,1781509851000,-987.12,0.00015041,2]
[425106578,1781509851000,-987.12,0.00015216,2]
[425106590,1781509851000,-987.12,0.00015384,2]
[425106582,1781509851000,-987.12,0.00015269,2]
[425106602,1781509851000,-2204.69874001,0.000156,2]
[425106603,1781509851000,-3101.82,0.0001563,2]
[425106601,1781509851000,-150.0,0.000156,2]
[425106599,1781509851000,-987.12,0.00015462,2]
[425106598,1781509851000,-987.12,0.00015447,2]
[425106595,1781509851000,-987.12,0.000154,2]
[425106597,1781509851000,-987.12,0.00015431,2]
[425106589,1781509851000,-987.12,0.00015369,2]
[425106594,1781509851000,-2204.69874001,0.000154,2]
[425106596,1781509851000,-987.12,0.00015416,2]
[425106600,1781509851000,-7563.68,0.00015462,2]
[425106591,1781509851000,-215.466156,0.00015386,2]
[425106592,1781509851000,-161.857219,0.00015386,2]
[425106581,1781509851000,-987.12,0.00015251,2]
[425106586,1781509851000,-987.12,0.00015336,2]
[425106584,1781509851000,-987.12,0.00015303,2]
[425106585,1781509851000,-987.12,0.0001532,2]
[425106580,1781509851000,-10000.0,0.00015237,2]
[425106583,1781509851000,-987.12,0.00015286,2]
[425106588,1781509851000,-2500.0,0.00015362,2]
[425106593,1781509851000,-235.3813457,0.00015394,2]
[425106579,1781509851000,-987.12,0.00015234,2]
[425106623,1781509852000,-1613.0535,0.00016861,2]
[425106624,1781509852000,-2204.69874001,0.000169,2]
[425106626,1781509852000,-615.86,0.00016955,2]
[425106625,1781509852000,-615.86,0.00016955,2]
[425106629,1781509852000,-506.0,0.00017201,5]
[425106627,1781509852000,-1137.65,0.00016955,2]
[425106631,1781509852000,-40360.72,0.00017202,2]
[425106628,1781509852000,-712.0,0.000171,2]
[425106633,1781509852000,-1672.7364795,0.00017409,2]
[425106632,1781509852000,-153.0,0.00017376,2]
[425106635,1781509852000,-1359.0,0.0001765,2]
[425106638,1781509852000,-631.0,0.0001765,2]
[425106636,1781509852000,-3558.0,0.0001765,2]
[425106622,1781509852000,-168.44,0.00016712,2]
[425106630,1781509852000,-518.09154931,0.00017201,2]
[425106634,1781509852000,-200.0,0.00017418,2]
[425106609,1781509852000,-300.0,0.00016,2]
[425106620,1781509852000,-408.0,0.00016567,5]
[425106604,1781509852000,-194.984,0.0001563,2]
[425106605,1781509852000,-2204.69874001,0.000157,2]
[425106608,1781509852000,-2204.69874001,0.000159,2]
[425106606,1781509852000,-1500.0,0.00015765,2]
[425106607,1781509852000,-443.27,0.00015889,2]
[425106610,1781509852000,-2204.69874001,0.000161,2]
[425106640,1781509852000,-419.0,0.0001765,2]
[425106613,1781509852000,-1555.5,0.00016313,2]
[425106612,1781509852000,-2204.69874001,0.000162,2]
[425106611,1781509852000,-682.28,0.00016145,2]
[425106616,1781509852000,-700.2,0.00016438,2]
[425106614,1781509852000,-250.0,0.00016377,2]
[425106621,1781509852000,-2204.69874001,0.000167,2]
[425106619,1781509852000,-597.17105034,0.00016511,2]
[425106615,1781509852000,-2204.69874001,0.000164,2]
[425106617,1781509852000,-2204.69874001,0.000165,2]
[425106637,1781509852000,-1275.0,0.0001765,2]
[425106618,1781509852000,-3000.0,0.00016511,2]
[425106642,1781509852000,-443.27,0.00017654,2]
[425106663,1781509852000,-335758.76658065,0.00019,2]
[425106662,1781509852000,-344.96367947,0.00018953,2]
[425106664,1781509852000,-1865.36488656,0.00019053,2]
[425106666,1781509852000,-350.0,0.00019447,2]
[425106665,1781509852000,-443.27,0.00019419,2]
[425106667,1781509852000,-734.0,0.00019462,5]
[425106669,1781509852000,-501.0,0.00019653,3]
[425106668,1781509852000,-1934.38338736,0.00019601,2]
[425106670,1781509852000,-31869.3514372,0.00019662,2]
[425106672,1781509852000,-350.0,0.00019671,2]
[425106673,1781509852000,-350.0,0.00019693,2]
[425106674,1781509852000,-260.03823046,0.00019723,2]
[425106671,1781509852000,-27283.9412324,0.00019668,2]
[425106676,1781509852000,-94768.57926352,0.00019729,2]
[425106641,1781509852000,-934.0,0.0001765,2]
[425106660,1781509852000,-197.54727873,0.000187,2]
[425106661,1781509852000,-501.0,0.00018827,2]
[425106675,1781509852000,-300.0,0.00019723,7]
[425106658,1781509852000,-496.51200947,0.00018567,2]
[425106657,1781509852000,-281.45048077,0.00018567,2]
[425106643,1781509852000,-999.99,0.00017728,2]
[425106639,1781509852000,-383.0,0.0001765,2]
[425106645,1781509852000,-682.28,0.00017938,2]
[425106646,1781509852000,-1734.62772924,0.00017957,2]
[425106647,1781509852000,-197.54727873,0.00018,2]
[425106652,1781509852000,-197.54727873,0.000184,2]
[425106648,1781509852000,-350.0,0.00018,2]
[425106651,1781509852000,-654.35,0.00018347,2]
[425106644,1781509852000,-369.5,0.00017728,2]
[425106653,1781509852000,-700.2,0.0001841,2]
[425106650,1781509852000,-197.54727873,0.000182,2]
[425106649,1781509852000,-501.0,0.00018,2]
[425106654,1781509852000,-169.01631186,0.00018467,2]
[425106656,1781509852000,-1798.80895522,0.00018505,2]
[425106655,1781509852000,-197.54727873,0.000185,2]
[425106659,1781509852000,-742.75227174,0.00018567,2]
[425106678,1781509853000,-634.28,0.00019729,2]
[425106677,1781509853000,-1411.79630058,0.00019729,2]
[425106682,1781509853000,-354.70923108,0.00019462,5]
[425106681,1781509853000,-341.70830118,0.00019729,2]
[425106679,1781509853000,-342.70830118,0.00018,2]
[425106680,1781509853000,-158.29169882,0.00018,2]
[425106713,1781509854000,-3992.57792136,0.0002,2]
[425106715,1781509854000,-200.0,0.0002,2]
[425106723,1781509854000,-477.0259,0.0002,2]
[425106717,1781509854000,-532.0,0.0002,2]
[425106716,1781509854000,-226.0,0.0002,2]
[425106720,1781509854000,-7800.92,0.0002,2]
[425106722,1781509854000,-477.02591,0.0002,2]
[425106714,1781509854000,-400.0,0.0002,2]
[425106719,1781509854000,-198.0,0.0002,2]
[425106718,1781509854000,-1656.0,0.0002,2]
[425106721,1781509854000,-477.0259,0.0002,2]
[425106726,1781509854000,-609.0,0.0002,2]
[425106736,1781509854000,-169.01631179,0.00020115,2]
[425106725,1781509854000,-164.0,0.0002,2]
[425106734,1781509854000,-410.0,0.00020018,2]
[425106729,1781509854000,-244.0,0.0002,2]
[425106733,1781509854000,-273.0,0.0002,2]
[425106728,1781509854000,-160.49,0.0002,2]
[425106727,1781509854000,-195.042,0.0002,2]
[425106730,1781509854000,-877.0,0.0002,2]
[425106731,1781509854000,-156.0,0.0002,2]
[425106732,1781509854000,-153.48019605,0.0002,20]
[425106738,1781509854000,-173.53935065,0.000202,2]
[425106735,1781509854000,-1004.9688,0.00020067,7]
[425106712,1781509854000,-200.0,0.0002,2]
[425106737,1781509854000,-2005.9555727,0.00020149,2]
[425106710,1781509854000,-173.53935065,0.0002,2]
[425106690,1781509854000,-410.0,0.00019794,2]
[425106711,1781509854000,-1149.408438,0.0002,2]
[425106689,1781509854000,-410.0,0.00019793,2]
[425106683,1781509854000,-624.29076892,0.00019462,5]
[425106684,1781509854000,-9766.57693753,0.00019729,2]
[425106686,1781509854000,-1424.9802741,0.00019729,2]
[425106685,1781509854000,-60171.08237729,0.00019729,2]
[425106687,1781509854000,-410.0,0.00019778,2]
[425106688,1781509854000,-464.0,0.00019785,2]
[425106691,1781509854000,-477.0259,0.000198,2]
[425106696,1781509854000,-410.0,0.00019866,2]
[425106692,1781509854000,-477.02591,0.000198,2]
[425106694,1781509854000,-200.0,0.00019839,2]
[425106695,1781509854000,-410.0,0.00019864,2]
[425106693,1781509854000,-256.0,0.00019823,2]
[425106698,1781509854000,-162.0,0.0001988,2]
[425106697,1781509854000,-410.0,0.00019875,2]
[425106700,1781509854000,-410.0,0.00019904,2]
[425106699,1781509854000,-3963.85504358,0.000199,2]
[425106702,1781509854000,-410.0,0.00019929,2]
[425106701,1781509854000,-344.96367942,0.00019922,2]
[425106704,1781509854000,-410.0,0.00019963,2]
[425106705,1781509854000,-500.0,0.0001998,2]
[425106703,1781509854000,-410.0,0.00019949,2]
[425106706,1781509854000,-410.0,0.00019998,2]
[425106707,1781509854000,-408.8963301,0.00019998,2]
[425106708,1781509854000,-80457.18127091,0.0002,2]
[425106709,1781509854000,-1479.0,0.0002,2]
[425106746,1781509854000,-501.0,0.0002048,4]
[425106724,1781509854000,-477.02591,0.0002,2]
[425106739,1781509854000,-200.0,0.000202,2]
[425106773,1781509854000,-151.0,0.00020697,2]
[425106781,1781509854000,-721.12765534,0.00020697,2]
[425106772,1781509854000,-358.31816607,0.00020697,2]
[425106782,1781509854000,-1428.38747117,0.00020697,2]
[425106783,1781509854000,-209.40437684,0.00020697,2]
[425106774,1781509854000,-151.0,0.00020697,2]
[425106775,1781509854000,-1377.42282658,0.00020697,2]
[425106776,1781509854000,-500.0,0.00020697,2]
[425106780,1781509854000,-209.40437684,0.00020697,2]
[425106778,1781509854000,-151.0,0.00020697,2]
[425106777,1781509854000,-578.20924308,0.00020697,2]
[425106779,1781509854000,-151.0,0.00020697,2]
[425106784,1781509854000,-500.0,0.00020697,2]
[425106786,1781509854000,-2080.17592889,0.00020697,2]
[425106788,1781509854000,-1481.2378076,0.00020697,2]
[425106787,1781509854000,-151.0,0.00020697,2]
[425106790,1781509854000,-154.67963625,0.00020697,2]
[425106789,1781509854000,-500.0,0.00020697,2]
[425106785,1781509854000,-151.0,0.00020697,2]
[425106791,1781509854000,-151.0,0.00020697,2]
[425106793,1781509854000,-1536.04360648,0.00020697,2]
[425106792,1781509854000,-151.0,0.00020697,2]
[425106794,1781509854000,-209.40437684,0.00020697,2]
[425106796,1781509854000,-500.0,0.00020697,2]
[425106795,1781509854000,-500.0,0.00020697,2]
[425106771,1781509854000,-209.40437684,0.00020697,2]
[425106769,1781509854000,-151.0,0.00020697,2]
[425106740,1781509854000,-200.0,0.000202,2]
[425106770,1781509854000,-1328.27659266,0.00020697,2]
[425106745,1781509854000,-163.23947375,0.0002045,2]
[425106744,1781509854000,-200.0,0.00020402,2]
[425106742,1781509854000,-173.53935065,0.000204,2]
[425106741,1781509854000,-700.2,0.00020381,2]
[425106743,1781509854000,-200.0,0.00020402,2]
[425106747,1781509854000,-9978.39,0.00020548,2]
[425106758,1781509854000,-1068.11,0.00020697,2]
[425106767,1781509854000,-1280.88388877,0.00020697,2]
[425106755,1781509854000,-934.0,0.0002065,2]
[425106754,1781509854000,-419.0,0.0002065,2]
[425106749,1781509854000,-1359.0,0.0002065,2]
[425106757,1781509854000,-200.0,0.00020697,2]
[425106751,1781509854000,-1275.0,0.0002065,2]
[425106748,1781509854000,-200.0,0.00020606,2]
[425106759,1781509854000,-1107.63007,0.00020697,2]
[425106752,1781509854000,-631.0,0.0002065,2]
[425106766,1781509854000,-174.61919141,0.00020697,2]
[425106765,1781509854000,-1235.18214925,0.00020697,2]
[425106768,1781509854000,-151.0,0.00020697,2]
[425106764,1781509854000,-151.0,0.00020697,2]
[425106763,1781509854000,-359.71399811,0.00020697,2]
[425106762,1781509854000,-1191.11104074,0.00020697,2]
[425106760,1781509854000,-1148.61238259,0.00020697,2]
[425106756,1781509854000,-1030.0,0.00020697,2]
[425106750,1781509854000,-3558.0,0.0002065,2]
[425106753,1781509854000,-383.0,0.0002065,2]
[425106761,1781509854000,-151.0,0.00020697,2]
[425106832,1781509855000,-151.0,0.00020697,2]
[425106839,1781509855000,-152.0,0.00020697,2]
[425106836,1781509855000,-151.0,0.00020697,2]
[425106835,1781509855000,-152.0,0.00020697,2]
[425106843,1781509855000,-152.0,0.00020697,2]
[425106830,1781509855000,-152.0,0.00020697,2]
[425106826,1781509855000,-151.0,0.00020697,2]
[425106827,1781509855000,-151.0,0.00020697,2]
[425106828,1781509855000,-500.0,0.00020697,2]
[425106829,1781509855000,-500.0,0.00020697,2]
[425106833,1781509855000,-500.0,0.00020697,2]
[425106841,1781509855000,-151.0,0.00020697,2]
[425106854,1781509855000,-200.0,0.00020812,2]
[425106834,1781509855000,-500.0,0.00020697,2]
[425106838,1781509855000,-500.0,0.00020697,2]
[425106842,1781509855000,-500.0,0.00020697,2]
[425106840,1781509855000,-151.0,0.00020697,2]
[425106844,1781509855000,-151.0,0.00020697,2]
[425106846,1781509855000,-152.0,0.00020697,2]
[425106847,1781509855000,-151.0,0.00020697,2]
[425106851,1781509855000,-151.0,0.00020752,2]
[425106853,1781509855000,-151.0,0.00020807,2]
[425106849,1781509855000,-151.0,0.00020697,2]
[425106850,1781509855000,-358.31816607,0.00020752,2]
[425106825,1781509855000,-152.0,0.00020697,2]
[425106837,1781509855000,-151.0,0.00020697,2]
[425106824,1781509855000,-500.0,0.00020697,2]
[425106810,1781509855000,-152.0,0.00020697,2]
[425106822,1781509855000,-151.0,0.00020697,2]
[425106848,1781509855000,-151.0,0.00020697,2]
[425106806,1781509855000,-151.0,0.00020697,2]
[425106798,1781509855000,-151.0,0.00020697,2]
[425106802,1781509855000,-500.0,0.00020697,2]
[425106800,1781509855000,-151.0,0.00020697,2]
[425106801,1781509855000,-1592.87721992,0.00020697,2]
[425106799,1781509855000,-151.0,0.00020697,2]
[425106797,1781509855000,-152.0,0.00020697,2]
[425106804,1781509855000,-152.0,0.00020697,2]
[425106803,1781509855000,-500.0,0.00020697,2]
[425106805,1781509855000,-151.0,0.00020697,2]
[425106807,1781509855000,-731.92164327,0.00020697,2]
[425106809,1781509855000,-500.0,0.00020697,2]
[425106808,1781509855000,-500.0,0.00020697,2]
[425106814,1781509855000,-500.0,0.00020697,2]
[425106813,1781509855000,-500.0,0.00020697,2]
[425106812,1781509855000,-151.0,0.00020697,2]
[425106815,1781509855000,-152.0,0.00020697,2]
[425106811,1781509855000,-151.0,0.00020697,2]
[425106819,1781509855000,-500.0,0.00020697,2]
[425106817,1781509855000,-151.0,0.00020697,2]
[425106818,1781509855000,-500.0,0.00020697,2]
[425106821,1781509855000,-151.0,0.00020697,2]
[425106831,1781509855000,-151.0,0.00020697,2]
[425106820,1781509855000,-152.0,0.00020697,2]
[425106823,1781509855000,-500.0,0.00020697,2]
[425106845,1781509855000,-500.0,0.00020697,2]
[425106816,1781509855000,-151.0,0.00020697,2]
[425106856,1781509855000,-791.85,0.0002084,2]
[425106885,1781509855000,-151.0,0.00021027,2]
[425106887,1781509855000,-151.0,0.00021082,2]
[425106888,1781509855000,-358.31816607,0.00021137,2]
[425106890,1781509855000,-443.27,0.00021185,2]
[425106889,1781509855000,-151.0,0.00021137,2]
[425106894,1781509855000,-274.81922984,0.000212,30]
[425106910,1781509855000,-150.0,0.00021347,2]
[425106892,1781509855000,-151.0,0.00021192,2]
[425106895,1781509855000,-164.54840201,0.00021234,2]
[425106896,1781509855000,-200.0,0.00021245,2]
[425106891,1781509855000,-358.31816607,0.00021192,2]
[425106893,1781509855000,-1891.58348531,0.000212,2]
[425106898,1781509855000,-181.08010149,0.00021245,2]
[425106897,1781509855000,-359.71399811,0.00021245,2]
[425106900,1781509855000,-278.27669356,0.00021245,2]
[425106909,1781509855000,-501.0,0.00021307,5]
[425106908,1781509855000,-3830.26,0.00021273,2]
[425106899,1781509855000,-151.0,0.00021245,2]
[425106902,1781509855000,-2157.14243826,0.00021245,2]
[425106901,1781509855000,-217.15233878,0.00021245,2]
[425106904,1781509855000,-151.0,0.00021245,2]
[425106907,1781509855000,-151.0,0.00021247,2]
[425106905,1781509855000,-217.15233878,0.00021245,2]
[425106903,1781509855000,-154.67963625,0.00021245,2]
[425106852,1781509855000,-358.31816607,0.00020807,2]
[425106886,1781509855000,-358.31816607,0.00021082,2]
[425106883,1781509855000,-273.0,0.00021,2]
[425106906,1781509855000,-358.31816616,0.00021247,2]
[425106882,1781509855000,-156.0,0.00021,2]
[425106884,1781509855000,-358.31816607,0.00021027,2]
[425106855,1781509855000,-535.7,0.00020824,2]
[425106857,1781509855000,-358.31816607,0.00020862,2]
[425106858,1781509855000,-151.0,0.00020862,2]
[425106861,1781509855000,-151.0,0.00020917,2]
[425106862,1781509855000,-358.31816607,0.00020972,2]
[425106859,1781509855000,-344.96367942,0.00020891,2]
[425106863,1781509855000,-151.0,0.00020972,2]
[425106865,1781509855000,-2787.66,0.00021,2]
[425106864,1781509855000,-1185.91809649,0.00020999,5]
[425106868,1781509855000,-1149.408438,0.00021,2]
[425106866,1781509855000,-217.77,0.00021,2]
[425106869,1781509855000,-15000.0,0.00021,2]
[425106860,1781509855000,-358.31816607,0.00020917,2]
[425106870,1781509855000,-6111.0,0.00021,2]
[425106879,1781509855000,-244.0,0.00021,2]
[425106867,1781509855000,-1891.58348531,0.00021,2]
[425106881,1781509855000,-150.0,0.00021,2]
[425106878,1781509855000,-609.0,0.00021,2]
[425106876,1781509855000,-198.0,0.00021,2]
[425106880,1781509855000,-877.0,0.00021,2]
[425106872,1781509855000,-6111.0,0.00021,2]
[425106873,1781509855000,-226.0,0.00021,2]
[425106871,1781509855000,-15000.0,0.00021,2]
[425106874,1781509855000,-532.0,0.00021,2]
[425106875,1781509855000,-1656.0,0.00021,2]
[425106877,1781509855000,-164.0,0.00021,2]
[425106946,1781509856000,-206.0,0.00021976,2]
[425106936,1781509856000,-225.18697532,0.00021793,2]
[425106942,1781509856000,-708.65774474,0.000219,2]
[425106937,1781509856000,-1161.08,0.000218,7]
[425106943,1781509856000,-5000.0,0.00021918,2]
[425106939,1781509856000,-344.96367942,0.0002186,2]
[425106945,1781509856000,-150.0,0.00021918,2]
[425106938,1781509856000,-173.41344453,0.00021819,2]
[425106944,1781509856000,-150.0,0.00021918,2]
[425106941,1781509856000,-1891.58348531,0.000219,2]
[425106949,1781509856000,-10000.0,0.00022,10]
[425106948,1781509856000,-198.8,0.00022,10]
[425106947,1781509856000,-200.0,0.00022,10]
[425106950,1781509856000,-10000.0,0.00022,10]
[425106951,1781509856000,-10000.0,0.00022,10]
[425106952,1781509856000,-170.35,0.00022,10]
[425106953,1781509856000,-500.0,0.00022,3]
[425106954,1781509856000,-5162.4017348,0.00022,30]
[425106935,1781509856000,-151.0,0.00021793,2]
[425106955,1781509856000,-305700.03563777,0.00022,4]
[425106940,1781509856000,-180.08459866,0.00021876,2]